Cogmind - Beta 13 @@@ ROGUE MODE // 2024.07.12 @ 02:42:27 Player: ThatBishHoly Result: Self-destructed Performance ------------- Evolutions (1) 500 Regions Visited (3) 600 Robots Destroyed (14) 70 Value Destroyed (325) 325 Prototype IDs (2) 40 Alien Tech Used (0) 0 Bonus (0) 0 TOTAL SCORE: 1535 Bonus ------- None Cogmind --------- Core Integrity 65/400 Matter 184/450 Energy 100/100 System Corruption 0% Temperature Cool (0) Movement Walking (190) Ox1 Location -9/Materials Parts ------- > --- POWER (1) -------- (None) > --- PROPULSION (3) --- Aluminum Leg Aluminum Leg > --- UTILITY (3) ------ Large Storage Unit Large Matter Pod > --- WEAPON (2) ------- Beam Rifle Light Assault Rifle > --- INVENTORY (15) --- Datajack Peak State ------------ > --- POWER ------------ Ion Engine > --- PROPULSION ------- Aluminum Leg Aluminum Leg > --- UTILITY ---------- Small Storage Unit Large Storage Unit > --- WEAPON ----------- Assault Rifle Light Assault Rifle > --- INVENTORY -------- (None) [Rating: 7] Favorites ----------- Power Ion Engine Engine Ion Engine Propulsion Aluminum Leg Leg Aluminum Leg Utility Large Storage Unit Storage Large Storage Unit Weapon Assault Rifle Energy Gun Beam Rifle Ballistic Gun Assault Rifle Launcher Grenade Launcher Build | -11 -10 -10 -9 ------- Run | Yrd Mat Min Mat Slots Evolved 2 | . . . 2 Power . | . . . . Propulsion 1 | . . . 1 Utility 1 | . . . 1 Weapon . | . . . . Parts Attached 14 | 6 3 . 5 Power 1 | 1 . . . Engine 1 | 1 . . . Core . | . . . . Reactor . | . . . . Propulsion 4 | 2 . . 2 Treads . | . . . . Leg 4 | 2 . . 2 Wheel . | . . . . Hover . | . . . . Flight . | . . . . Utility 3 | 1 1 . 1 Device . | . . . . Storage 3 | 1 1 . 1 Processor . | . . . . Hackware . | . . . . Protection . | . . . . Artifact . | . . . . Weapon 6 | 2 2 . 2 Energy Gun 1 | . . . 1 Energy Cannon . | . . . . Ballistic Gun 4 | 2 1 . 1 Ballistic Cannon . | . . . . Launcher 1 | . 1 . . Special Weapon . | . . . . Impact Weapon . | . . . . Slashing Weapon . | . . . . Piercing Weapon . | . . . . Special Melee Weapon . | . . . . Unidentified Prototypes . | . . . . Parts Lost 5 | . . . 5 Power 1 | . . . 1 Propulsion 2 | . . . 2 Utility . | . . . . Weapon 2 | . . . 2 Highest Loss Streak 5 | . . . 5 To Critical Strikes . | . . . . Average Slot Usage (%) 78 | . 85 85 39 Engine 12 | . 14 14 1 Leg 25 | . 28 28 9 Storage 13 | . 14 14 12 Ballistic Gun 17 | . 23 14 10 Launcher 8 | . 4 14 2 Naked Turns . | . . . . Heaviest Build 30 | 13 30 30 30 Greatest Support 20 | 20 20 20 20 Greatest Overweight (x) 6 | . 1 1 6 Average Overweight (x) . | . . 1 2 Largest Inventory Capacity 15 | 8 15 15 15 Average Capacity 14 | 6 14 15 15 Most Carried 5 | 2 3 3 5 Average Carried 2 | . 1 3 2 Final Capacity 15 | 8 15 15 15 Final Carried 3 | . 3 3 1 Class Distribution -------------------- 100% | Mutant Dominant Class ---------------- Mutant | -10/Materials Mutant | -10/Mines Mutant | -9/Materials Resources | -11 -10 -10 -9 ----------- Run | Yrd Mat Min Mat Matter Collected 365 | 225 34 27 79 Remotely . | . . . . Salvage Created 280 | . 34 47 199 Parts 20 | . 2 9 9 Haulers Intercepted . | . . . . Recyclers Shooed . | . . . . Parts Field Recycled . | . . . . Retrieved Matter . | . . . . Parts Self-Destructed . | . . . . Prevented . | . . . . Kills | -11 -10 -10 -9 ------- Run | Yrd Mat Min Mat Combat Hostiles Destroyed 13 | . 2 6 5 Guns 6 | . . 1 5 AOE 7 | . 2 5 . Classes Destroyed 3 | . 1 2 . Worker 1 | . . 1 . Swarmer 6 | . . 6 . Grunt 7 | . 2 . 5 Best Kill Streak 4 | . 2 4 4 Combat Bots Only 4 | . 2 3 4 Max Kills in Single Turn 3 | . 1 3 1 Gunslinging . | . . . . Exploded 2 | . 1 2 . Melee . | . . . . Uniques/NPCs Destroyed . | . . . . Combat | -11 -10 -10 -9 -------- Run | Yrd Mat Min Mat Hostile Shots Fired 104 | . 8 18 78 Missed 27 | . 3 5 19 Damage Taken 907 | . 76 148 683 Core 350 | . . 15 335 Absorbed by Shields . | . . . . Core Remaining (%) 97 | 100 . 94 . Volleys Fired 53 | . 4 7 42 Largest 2 | . 2 2 1 Hottest 50 | . 50 50 20 Shots Fired 61 | . 8 11 42 Gun 53 | . 4 7 42 Cannon . | . . . . Launcher 8 | . 4 4 . Special . | . . . . Kinetic 53 | . 4 7 42 Thermal . | . . . . Explosive 8 | . 4 4 . Electromagnetic . | . . . . Robot Hit Streak 15 | . 4 1 15 Robot Miss Streak 5 | . 1 4 5 Penetration Max . | . . . . Secondary Targets . | . . . . Shots Hit Robots 42 | . 6 3 33 Core Hits 29 | . 3 11 15 Critical Kills . | . . . . Critical Parts Destroyed . | . . . . Critical Strikes . | . . . . Melee Attacks . | . . . . Impact . | . . . . Slashing . | . . . . Piercing . | . . . . Sneak Attacks . | . . . . Combat Hostiles . | . . . . Follow-up Attacks . | . . . . Damage Inflicted 853 | . 234 320 299 Guns 336 | . 26 11 299 Cannons . | . . . . Explosions 511 | . 207 304 . Melee . | . . . . Ramming 6 | . 1 5 . Kinetic 336 | . 26 11 299 Thermal . | . . . . Explosive 511 | . 207 304 . Electromagnetic . | . . . . Impact . | . . . . Slashing . | . . . . Piercing . | . . . . Highest Corruption . | . . . . Average Corruption . | . . . . Corruption Purged . | . . . . Corruption Blocked . | . . . . Overload Shots . | . . . . Overflow Damage . | . . . . Projectiles . | . . . . Explosions . | . . . . Melee . | . . . . Knockbacks . | . . . . Impact . | . . . . Kinetic . | . . . . Secondary . | . . . . Self-Inflicted Damage 56 | . 2 54 . Shots 3 | . 1 2 . Rammed . | . . . . Targets Rammed 2 | . 1 1 . Kicked 2 | . 1 1 . Crushed . | . . . . Highest Temperature 7 | . 7 . 1 Average Temperature 3 | . 4 . 1 Received Heat Transfer 423 | . 45 . 378 Siege Activations . | . . . . Robots Corrupted . | . . . . Combat Hostiles . | . . . . Parts Fried . | . . . . Impact Corruptions . | . . . . Robots Melted . | . . . . Combat Hostiles . | . . . . Parts Melted . | . . . . Heat Transferred . | . . . . Parts Sabotaged . | . . . . Parts Stolen . | . . . . Parts Stripped . | . . . . Power Chain Reactions . | . . . . Alert | -11 -10 -10 -9 ------- Run | Yrd Mat Min Mat Peak Influence 123 | . 123 88 110 Initial 33 | . . 5 33 Average 22 | . 16 20 56 Maximum Alert Level . | . . . . Low Security (%) 100 | 100 100 100 100 Level 1 . | . . . . Level 2 . | . . . . Level 3 . | . . . . Level 4 . | . . . . Level 5 . | . . . . High Security . | . . . . Max Security . | . . . . Squads Dispatched . | . . . . Investigation . | . . . . Extermination . | . . . . Reinforcement . | . . . . Assault . | . . . . Garrison . | . . . . Intercept . | . . . . Searches Triggered . | . . . . Construction Impeded . | . . . . Haulers Reinforced . | . . . . Active Scanning Responses . | . . . . Cargo Convoy Interrupts . | . . . . Stealth | -11 -10 -10 -9 --------- Run | Yrd Mat Min Mat Distress Signals 1 | . 1 . . Communications Jammed . | . . . . Distress Signals . | . . . . Times Spotted 16 | . 4 6 6 Peak Tracking Total 6 | . 3 3 6 Tactical Retreats 1 | . 1 . . Traps | -11 -10 -10 -9 ------- Run | Yrd Mat Min Mat Traps Triggered . | . . . . Indirectly . | . . . . Trap Hack Attempts . | . . . . Triggered . | . . . . Disarmed . | . . . . Reprogrammed . | . . . . Reused . | . . . . Traps Extracted . | . . . . Installed . | . . . . Triggered . | . . . . Machines | -11 -10 -10 -9 ---------- Run | Yrd Mat Min Mat Machines Disabled . | . . . . Max in Single Turn . | . . . . Machines Repaired . | . . . . Machines Dismantled . | . . . . Machines Sabotaged . | . . . . Overloaded Fab Kills . | . . . . Hacking | -11 -10 -10 -9 --------- Run | Yrd Mat Min Mat Machines Accessed 1 | . 1 . . Terminals 1 | . 1 . . Fabricators . | . . . . Repair Stations . | . . . . Recycling Units . | . . . . Scanalyzers . | . . . . Garrison Access . | . . . . Total Hacks 2 | . 2 . . Successful 2 | . 2 . . Failed . | . . . . Catastrophic . | . . . . Database Lockouts . | . . . . Manual . | . . . . Terminals 2 | . 2 . . Fabricators . | . . . . Repair Stations . | . . . . Recycling Units . | . . . . Scanalyzers . | . . . . Garrison Access . | . . . . Terminal Hacks 2 | . 2 . . Prototype ID Bank 1 | . 1 . . Reinforcement Status 1 | . 1 . . Fabricator Hacks . | . . . . Repair Station Hacks . | . . . . Recycling Unit Hacks . | . . . . Scanalyzer . | . . . . Garrison Access Hacks . | . . . . Unauthorized Hacks . | . . . . Terminals . | . . . . Fabricators . | . . . . Repair Stations . | . . . . Recycling Units . | . . . . Scanalyzers . | . . . . Garrison Access . | . . . . Data Cores Recovered . | . . . . Used . | . . . . Hacking Detections . | . . . . Full Trace Events . | . . . . Feedback Events . | . . . . Feedback Blocked . | . . . . Robot Schematics Acquired . | . . . . Robots Built . | . . . . Authchips . | . . . . Time . | . . . . Total Robot Build Rating . | . . . . Part Schematics Acquired . | . . . . Parts Built . | . . . . Authchips . | . . . . Time . | . . . . Total Part Build Rating . | . . . . Parts Repaired . | . . . . Time . | . . . . Parts Recycled . | . . . . Recycled Matter . | . . . . Retrieved Matter . | . . . . Retrieved Components . | . . . . Parts Scanalyzed . | . . . . Part Schematics Acquired . | . . . . Parts Damaged . | . . . . Bothacking | -11 -10 -10 -9 ------------ Run | Yrd Mat Min Mat Used RIF Installer . | . . . . Robots Hacked . | . . . . Non-combat . | . . . . Combat . | . . . . Robot Hacks Applied . | . . . . Relay Couplers Released . | . . . . Fabnet Peak Effective % . | . . . . Robots Rewired . | . . . . Allies Hacked . | . . . . Hacks Repelled . | . . . . Allies | -11 -10 -10 -9 -------- Run | Yrd Mat Min Mat Total Allies 1 | . . 1 . Largest Group 1 | . . 1 . Highest-Rated Group 31 | . . 31 . Highest-Rated Ally 31 | . . 31 . Total Orders . | . . . . Ally Attacks . | . . . . Total Damage . | . . . . Kills . | . . . . Allies Corrupted . | . . . . Allies Melted . | . . . . Intel | -11 -10 -10 -9 ------- Run | Yrd Mat Min Mat Robot Analysis Total . | . . . . Derelict Logs Recovered 2 | . . 2 . Drone Launches . | . . . . Drone Recoveries . | . . . . Exploration | -11 -10 -10 -9 ------------- Run | Yrd Mat Min Mat Turns Passed 1328 | 69 506 569 184 Spaces Moved 647 | 57 258 290 42 Core 23 | 15 . . 8 Treads . | . . . . Legs 624 | 42 258 290 34 Wheels . | . . . . Hover . | . . . . Flight . | . . . . Fastest Speed 50 | 50 120 190 190 Average Speed 183 | 101 188 190 223 Slowest Speed 350 | 120 190 190 350 Overloaded Moves . | . . . . Propulsion Burnouts . | . . . . Robots Hopped . | . . . . Cave-ins Triggered . | . . . . Exploration Rate (%) 29 | 4 28 82 4 Regions Visited 3 Branch Regions 1 Pre-discovered Areas 1 | . . 1 . Known Exits Taken . | . . . . Unknown Exits Taken 3 | 1 1 1 . Scrap Searched 1 | . . 1 . Spaces Dug . | . . . . Terrain Destroyed 66 | . 37 29 . Melee . | . . . . Projectile . | . . . . AOE 66 | . 37 29 . Terrain Rammed . | . . . . Walls Destroyed . | . . . . Machines Disabled . | . . . . Actions | -11 -10 -10 -9 --------- Run | Yrd Mat Min Mat Total 731 | 68 270 297 96 Wait 4 | . . . 4 Move 644 | 56 257 289 42 Hop . | . . . . Pick Up 13 | 6 4 . 3 Fast Attach . | . . . . Attach 12 | 6 1 . 5 Detach . | . . . . Swap 2 | . 2 . . Drop 1 | . 1 . . Fire 53 | . 4 7 42 Melee . | . . . . Ram . | . . . . Kick 2 | . 1 1 . Crush . | . . . . Escape Stasis . | . . . . Rewire . | . . . . Trap . | . . . . Miscellaneous . | . . . . Route ------- -11/Scrapyard -10/Materials -10/Mines -9/Materials History --------- Turn | Location | Event 8 | -11/Scrapyard | Discovered new exit (range 16) 70 | -11/Scrapyard | Entered Materials 311 | -10/Materials | Build established: Mutant 422 | -10/Materials | Discovered new exit (range 13) 576 | -10/Materials | Entered Mines 579 | -10/Mines | Received a Mining Laser from a helpful Derelict 582 | -10/Mines | Learned 2 Materials zone layouts 921 | -10/Mines | Learned location of Zion (-6) 1103 | -10/Mines | Discovered new exit (range 10) 1145 | -10/Mines | Entered Materials 1145 | -9/Materials | Evolved 2 slots: Propulsion x1, Utility x1 1235 | -9/Materials | Lost 5 parts (1p2n2w) 1246 | -9/Materials | Core integrity fell below 50% 1266 | -9/Materials | Core integrity fell below 20% 1329 | -9/Materials | Self-destructed Last Messages --------------- 01183_ Assault Rifle destroyed. 01185_ Grenade Launcher destroyed. 01204_ Aluminum Leg destroyed. 01218_ G-34 Mercenary destroyed. 01229_ M-13 Machinist repairs G-34 Mercenary. 01240_ R-06 Scavenger collects Heat Sink. 01245_ G-34 Mercenary destroyed. 01246_ M-13 Machinist repairs G-34 Mercenary. 01247_ R-06 Scavenger collects Ion Engine. 01249_ G-34 Mercenary destroyed. 01250_ R-06 Scavenger collects Aluminum Leg. 01253_ R-06 Scavenger collects Heat Sink. 01263_ G-47 Trooper destroyed. 01268_ G-34 Mercenary destroyed. 01269_ U-05 Engineer builds a Door. 01270_ Acquired 79 matter. 01274_ Acquired Aluminum Leg. 01284_ R-06 Scavenger collects Aluminum Leg. 01288_ R-06 Scavenger collects Sml. Laser. 01290_ Acquired Beam Rifle. Map ----- +----------------------------------------------------+ | ?????????????????????????????????????????????????? | | ?????????????????????????????????????????????????? | | ?????????????????????????????????????????????????? | | ?????????????????????????????????????????????????? | | ?????????????????????????????????????????????????? | | ?????????????????????????????????????????????????? | | ?????????????????????????????????????????????????? | | ????????????????????#####?######?????????????????? | | ????????????????????# #? #?????????????????? | | ????????????????????# # #?????????????????? | | ????????????????????# # #?????????????????? | | ????????????????????# + """ #?????????????????? | | ????????????????????# # """ #?????????????????? | | ????????????????????# # """ #?????????????????? | | ????????????????????# #########????????????????? | | ????????????????????# # #????????????????? | | ????????????????????# # #????????????????? | | ????????????????????# #% #????????????????? | | ????????????????????# %+ """ #????????????????? | | ????????????? # """ =#????????????????? | | ????????? # """ #????????????????? | | ????????? # #????????????????? | | ?????????#+### # """ #????????????????? | | ?????????????# # """ #????????????????? | | ?????????????# == !! # """ #????????????????? | | ?????????????# = !! #@ #????????????????? | | ?????????????# #########????????????????? | | ?????????????+ ?????????????????????????? | | ?????????????# #### ?????????????????????????? | | ?????????????# ##???##/#?????????????????????????? | | ?????????????? ?????? ??????????????????????????? | | ????????????????????? !??????????????????????????? | | ????????????????????? ??????????????????????????? | | ????????????????????? ??????????????????????????? | | ?????????????????????????????????????????????????? | | ?????????????????????????????????????????????????? | | ?????????????????????????????????????????????????? | | ?????????????????????????????????????????????????? | | ?????????????????????????????????????????????????? | | ?????????????????????????????????????????????????? | | ?????????????????????????????????????????????????? | | ?????????????????????????????????????????????????? | | ?????????????????????????????????????????????????? | | ?????????????????????????????????????????????????? | | ?????????????????????????????????????????????????? | | ?????????????????????????????????????????????????? | | ?????????????????????????????????????????????????? | | ?????????????????????????????????????????????????? | | ?????????????????????????????????????????????????? | | ?????????????????????????????????????????????????? | +----------------------------------------------------+ Best States ------------- Heat Dissipation 28 Energy Generation 10 Energy Capacity 250 Matter Stores 265 Matter Capacity 450 Sight Range 16 Terrain Scan Density 10 Evasion (%) 45 Item Schematics ----------------- None Robot Schematics ------------------ None Fabricated ------------ Nothing Alien Tech Used ----------------- None Achievements -------------- None Challenges ------------ None Game ------ Seed DecoderProjectionRipper Manual? 0 Play Time 00:08:59 Cumulative 58.2 hours Start 2024.07.12 @ 02:35:02 End 2024.07.12 @ 02:42:27 Sessions 1 Manual Loads 0 Difficulty Rogue Special Mode None Game No. 159 Rogue 159 Adventurer 0 Explorer 0 Win Type - Total 0 Types 0/0/0/0/0/0/0/0/0 Lore% 22 Gallery% 41 Achievement% 26 Wizard Run 0 Options --------- Layout 0 ASCII 0 Keyboard 0 Movement Arrows Keybinds 0 Fullscreen 1 Font 12/Smallcaps Map View 38x28 Zoom Use 100% Tactical HUD 1 Map Filters NONE Filters NONE Steam SD RUN: bf1715e3-38dc-43ce-8709-66c7013da7ae